Cogmind - Beta 13 @@@ ROGUE MODE // 2024.04.21 @ 19:54:51 Player: ThatBishHoly Result: Destroyed by G-34 Mercenary with Small Laser Performance ------------- Evolutions (0) 0 Regions Visited (1) 200 Robots Destroyed (11) 55 Value Destroyed (135) 135 Prototype IDs (2) 40 Alien Tech Used (0) 0 Bonus (0) 0 TOTAL SCORE: 430 Bonus ------- None Cogmind --------- Core Integrity 0/250 Matter 246/300 Energy 32/100 System Corruption 1% Temperature Cool (31) Movement Core (50) Location -10/Materials Parts ------- > --- POWER (1) -------- (None) > --- PROPULSION (2) --- (None) > --- UTILITY (2) ------ (None) > --- WEAPON (2) ------- EM Pulse Gun Small Laser > --- INVENTORY (5) ---- Small Storage Unit Peak State ------------ > --- POWER ------------ Ion Engine > --- PROPULSION ------- Light Treads Light Treads > --- UTILITY ---------- Small Storage Unit Structural Scanner > --- WEAPON ----------- Assault Rifle Assault Rifle > --- INVENTORY -------- Small Laser [Rating: 7] Favorites ----------- Power Ion Engine Engine Ion Engine Propulsion Light Treads Treads Light Treads Utility Small Storage Unit Device Structural Scanner Storage Small Storage Unit Weapon Assault Rifle Energy Gun EM Pulse Gun Ballistic Gun Assault Rifle Build | -11 -10 ------- Run | Yrd Mat Slots Evolved . | . . Power . | . . Propulsion . | . . Utility . | . . Weapon . | . . Parts Attached 10 | 6 4 Power 1 | 1 . Engine 1 | 1 . Core . | . . Reactor . | . . Propulsion 2 | 2 . Treads 2 | 2 . Leg . | . . Wheel . | . . Hover . | . . Flight . | . . Utility 3 | 1 2 Device 2 | . 2 Storage 1 | 1 . Processor . | . . Hackware . | . . Protection . | . . Artifact . | . . Weapon 4 | 2 2 Energy Gun 2 | . 2 Energy Cannon . | . . Ballistic Gun 2 | 2 . Ballistic Cannon . | . . Launcher . | . . Special Weapon . | . . Impact Weapon . | . . Slashing Weapon . | . . Piercing Weapon . | . . Special Melee Weapon . | . . Unidentified Prototypes . | . . Parts Lost 5 | . 5 Power 1 | . 1 Propulsion 1 | . 1 Utility 1 | . 1 Weapon 2 | . 2 Highest Loss Streak 3 | . 3 To Critical Strikes . | . . Average Slot Usage (%) 75 | . 75 Engine 7 | . 7 Treads 23 | . 23 Device 12 | . 12 Storage 9 | . 9 Energy Gun 1 | . 1 Ballistic Gun 19 | . 19 Naked Turns 15 | . 15 Heaviest Build 15 | 14 15 Greatest Support 40 | 40 40 Greatest Overweight (x) . | . . Average Overweight (x) . | . . Largest Inventory Capacity 8 | 8 8 Average Capacity 7 | 6 7 Most Carried 5 | 5 3 Average Carried 1 | 1 1 Final Capacity 8 | 8 5 Final Carried 1 | 1 1 Class Distribution -------------------- 89% | Mutant 10% | Infiltrator-Mutant Dominant Class ---------------- Mutant | -10/Materials Resources | -11 -10 ----------- Run | Yrd Mat Matter Collected 386 | 188 198 Remotely . | . . Salvage Created 193 | . 193 Parts 19 | . 19 Haulers Intercepted . | . . Recyclers Shooed . | . . Parts Field Recycled . | . . Retrieved Matter . | . . Parts Self-Destructed . | . . Prevented . | . . Kills | -11 -10 ------- Run | Yrd Mat Combat Hostiles Destroyed 8 | . 8 Guns 7 | . 7 AOE 1 | . 1 Classes Destroyed 4 | . 4 Worker 2 | . 2 Builder 1 | . 1 Swarmer 6 | . 6 Grunt 2 | . 2 Best Kill Streak 3 | . 3 Combat Bots Only 3 | . 3 Max Kills in Single Turn 2 | . 2 Gunslinging . | . . Exploded 1 | . 1 Melee . | . . Uniques/NPCs Destroyed . | . . Combat | -11 -10 -------- Run | Yrd Mat Hostile Shots Fired 128 | . 128 Missed 34 | . 34 Damage Taken 902 | . 902 Core 258 | . 258 Absorbed by Shields . | . . Core Remaining (%) 100 | 100 . Volleys Fired 38 | . 38 Largest 2 | . 2 Hottest 80 | . 80 Shots Fired 67 | . 67 Gun 67 | . 67 Cannon . | . . Launcher . | . . Special . | . . Kinetic 56 | . 56 Thermal 5 | . 5 Explosive . | . . Electromagnetic 6 | . 6 Robot Hit Streak 6 | . 6 Robot Miss Streak 9 | . 9 Penetration Max . | . . Secondary Targets . | . . Shots Hit Robots 34 | . 34 Core Hits 14 | . 14 Critical Kills . | . . Critical Parts Destroyed . | . . Critical Strikes . | . . Melee Attacks . | . . Impact . | . . Slashing . | . . Piercing . | . . Sneak Attacks . | . . Combat Hostiles . | . . Follow-up Attacks . | . . Damage Inflicted 583 | . 583 Guns 461 | . 461 Cannons . | . . Explosions 108 | . 108 Melee . | . . Ramming 14 | . 14 Kinetic 351 | . 351 Thermal 140 | . 140 Explosive . | . . Electromagnetic 78 | . 78 Impact . | . . Slashing . | . . Piercing . | . . Highest Corruption 1 | . 1 Average Corruption 1 | . 1 Corruption Purged . | . . Corruption Blocked . | . . Effects 5 | . 5 Message Errors 2 | . 2 Parts Rejected 1 | . 1 Weapon Failures 2 | . 2 Overload Shots . | . . Overflow Damage . | . . Projectiles . | . . Explosions . | . . Melee . | . . Knockbacks . | . . Impact . | . . Kinetic . | . . Secondary . | . . Self-Inflicted Damage 48 | . 48 Shots 1 | . 1 Rammed 1 | . 1 Targets Rammed 2 | . 2 Kicked . | . . Crushed 1 | . 1 Highest Temperature 75 | . 75 Average Temperature 33 | . 33 Received Heat Transfer 192 | . 192 Siege Activations . | . . Robots Corrupted . | . . Combat Hostiles . | . . Parts Fried . | . . Impact Corruptions . | . . Robots Melted . | . . Combat Hostiles . | . . Parts Melted . | . . Heat Transferred 275 | . 275 Parts Sabotaged . | . . Parts Stolen . | . . Parts Stripped . | . . Power Chain Reactions 1 | . 1 Alert | -11 -10 ------- Run | Yrd Mat Peak Influence 191 | . 191 Initial . | . . Average 86 | . 104 Maximum Alert Level . | . . Low Security (%) 100 | 100 100 Level 1 . | . . Level 2 . | . . Level 3 . | . . Level 4 . | . . Level 5 . | . . High Security . | . . Max Security . | . . Squads Dispatched 3 | . 3 Investigation 1 | . 1 Extermination . | . . Reinforcement 2 | . 2 Assault . | . . Garrison . | . . Intercept . | . . Searches Triggered . | . . Construction Impeded . | . . Haulers Reinforced . | . . Active Scanning Responses . | . . Cargo Convoy Interrupts . | . . Stealth | -11 -10 --------- Run | Yrd Mat Distress Signals 2 | . 2 Communications Jammed . | . . Distress Signals . | . . Times Spotted 22 | . 22 Peak Tracking Total 8 | . 8 Tactical Retreats 1 | . 1 Traps | -11 -10 ------- Run | Yrd Mat Traps Triggered . | . . Indirectly . | . . Trap Hack Attempts . | . . Triggered . | . . Disarmed . | . . Reprogrammed . | . . Reused . | . . Traps Extracted . | . . Installed . | . . Triggered . | . . Machines | -11 -10 ---------- Run | Yrd Mat Machines Disabled . | . . Max in Single Turn . | . . Machines Repaired . | . . Machines Dismantled . | . . Machines Sabotaged . | . . Overloaded Fab Kills . | . . Hacking | -11 -10 --------- Run | Yrd Mat Machines Accessed 2 | . 2 Terminals 2 | . 2 Fabricators . | . . Repair Stations . | . . Recycling Units . | . . Scanalyzers . | . . Garrison Access . | . . Total Hacks 6 | . 6 Successful 2 | . 2 Failed 4 | . 4 Catastrophic . | . . Database Lockouts . | . . Manual . | . . Terminals 6 | . 6 Fabricators . | . . Repair Stations . | . . Recycling Units . | . . Scanalyzers . | . . Garrison Access . | . . Terminal Hacks 2 | . 2 Prototype ID Bank 1 | . 1 Alert Level 1 | . 1 Fabricator Hacks . | . . Repair Station Hacks . | . . Recycling Unit Hacks . | . . Scanalyzer . | . . Garrison Access Hacks . | . . Unauthorized Hacks . | . . Terminals . | . . Fabricators . | . . Repair Stations . | . . Recycling Units . | . . Scanalyzers . | . . Garrison Access . | . . Data Cores Recovered . | . . Used . | . . Hacking Detections 2 | . 2 Full Trace Events 1 | . 1 Feedback Events . | . . Feedback Blocked . | . . Robot Schematics Acquired . | . . Robots Built . | . . Authchips . | . . Time . | . . Total Robot Build Rating . | . . Part Schematics Acquired . | . . Parts Built . | . . Authchips . | . . Time . | . . Total Part Build Rating . | . . Parts Repaired . | . . Time . | . . Parts Recycled . | . . Recycled Matter . | . . Retrieved Matter . | . . Retrieved Components . | . . Parts Scanalyzed . | . . Part Schematics Acquired . | . . Parts Damaged . | . . Bothacking | -11 -10 ------------ Run | Yrd Mat Used RIF Installer . | . . Robots Hacked . | . . Non-combat . | . . Combat . | . . Robot Hacks Applied . | . . Relay Couplers Released . | . . Fabnet Peak Effective % . | . . Robots Rewired . | . . Allies Hacked . | . . Hacks Repelled . | . . Allies | -11 -10 -------- Run | Yrd Mat Total Allies . | . . Largest Group . | . . Highest-Rated Group . | . . Highest-Rated Ally . | . . Total Orders . | . . Ally Attacks . | . . Total Damage . | . . Kills . | . . Allies Corrupted . | . . Allies Melted . | . . Intel | -11 -10 ------- Run | Yrd Mat Robot Analysis Total . | . . Derelict Logs Recovered . | . . Drone Launches . | . . Drone Recoveries . | . . Exploration | -11 -10 ------------- Run | Yrd Mat Turns Passed 494 | 86 408 Spaces Moved 261 | 65 196 Core 85 | 34 51 Treads 176 | 31 145 Legs . | . . Wheels . | . . Hover . | . . Flight . | . . Fastest Speed 50 | 50 50 Average Speed 124 | 102 131 Slowest Speed 160 | 160 160 Overloaded Moves . | . . Propulsion Burnouts . | . . Robots Hopped . | . . Cave-ins Triggered . | . . Exploration Rate (%) 22 | 5 40 Regions Visited 1 Branch Regions . Pre-discovered Areas . | . . Known Exits Taken . | . . Unknown Exits Taken 1 | 1 . Scrap Searched . | . . Spaces Dug . | . . Terrain Destroyed 3 | . 3 Melee . | . . Projectile . | . . AOE 3 | . 3 Terrain Rammed 2 | . 2 Walls Destroyed . | . . Machines Disabled . | . . Actions | -11 -10 --------- Run | Yrd Mat Total 361 | 84 277 Wait 38 | 8 30 Move 260 | 64 196 Hop . | . . Pick Up 9 | 6 3 Fast Attach 1 | 1 . Attach 9 | 5 4 Detach 1 | . 1 Swap . | . . Drop 1 | . 1 Fire 38 | . 38 Melee . | . . Ram 3 | . 3 Kick . | . . Crush 1 | . 1 Escape Stasis . | . . Rewire . | . . Trap . | . . Miscellaneous . | . . Route ------- -11/Scrapyard -10/Materials History --------- Turn | Location | Event 22 | -11/Scrapyard | Discovered new exit (range 15) 87 | -11/Scrapyard | Entered Materials 303 | -10/Materials | Build established: Mutant 317 | -10/Materials | Core integrity fell below 50% 466 | -10/Materials | Lost 3 parts (1n1u1w) 486 | -10/Materials | Core integrity fell below 20% 495 | -10/Materials | Destroyed by G-34 Mercenary with Small Laser Last Messages --------------- 00435_ Assault Rifle destroyed. 00439_ K-01 Serf collects debris. 00446_ Rammed Wall. 00446_ Lgt. Treads broken. 00446_ Destabilizing: Short circuit. 00446_ ECM Suite broken. 00446_ Destabilizing: Short circuit. 00449_ M-13 Machinist repairs W-16 Scout. 00456_ System corrupted: Broken Lgt. Treads rejected. 00457_ Dropped Broken ECM Suite. 00457_ Slammed into W-16 Scout. 00468_ ALERT: Hostiles spotted, dispatching reinforcements to Terminal M005. 00471_ Acquired EM Pulse Gun. 00475_ System corrupted: Sml. Laser failed to cycle. 00490_ Chain reaction triggered in Ion Engine. 00490_ G-34 Mercenary destroyed. 00493_ Acquired 42 matter. Map ----- +----------------------------------------------------+ | ?????????????????????????# #?? | | ?????????????????????????# #?? | | ??????????#??????????????# #?? | | ??????????# ????????????# #?# | | ?????????## ???????????# ### | | ?????????# #################/####/#### | | ?????????# | | ?????????# | | ?????????# | | ?????????# ##### #########+########+## | | ??????????#????????# #??????? ### # | | ???????????????????#=#?????? ??# # | | ???????????????????# #????? #?# # | | ???????????????????#!#???? #?# # | | ???????????????????# ##### #?# # | | ???????????????????# + ] ? #?# + | | ???????????????????# ##### ? #?# # | | ???????????????????# #???# ? #?##### | | ???????????????????# #???#####?#####?????? | | ???????????????????# #?####??????????????? | | ?????????########### ### !##?????????????? | | ?????????# #= !#?????????????? | | ?????????# "T" ggg !#?????????????? | | ?????????# """ ; !#?????????????? | | ?????????# ; !#?????????????? | | ?????????########@## !##?????????????? | | ??????????????? # ####??????????????? | | ????????????? + #?????????????????? | | ???????????"T # #?????????????????? | | ??????????#"" [ # #?????????????????? | | ??????????# # #?????????????????? | | ??????????# """ # #?????????????????? | | ??????????# """ + #?????????????????? | | ??????????# """ # #?????????????????? | | ??????????#?? # #?????????????????? | | ??????????????###+## #?????????????????? | | ???????????????????? #?????????????????? | | ???????????????????? #?????????????????? | | ???????????????????? ??????????????????? | | ?????????????????????????????????????????? | | ?????????????????????????????????????????? | | ?????????????????????????????????????????? | | ?????????????????????????????????????????? | | ?????????????????????????????????????????? | | ?????????????????????????????????????????? | | ?????????????????????????????????????????? | | ?????????????????????????????????????????? | | ?????????????????????????????????????????? | | ?????????????????????????????????????????? | | ?????????????????????????????????????????? | +----------------------------------------------------+ Best States ------------- Heat Dissipation 25 Energy Generation 10 Energy Capacity 250 Matter Stores 228 Matter Capacity 300 Sight Range 16 Terrain Scan Density 10 ECM Strength 1 Evasion (%) 50 Recoil Reduction 2 Item Schematics ----------------- None Robot Schematics ------------------ None Fabricated ------------ Nothing Alien Tech Used ----------------- None Achievements -------------- None Challenges ------------ None Game ------ Seed MicroAlertInitializer Manual? 0 Play Time 00:09:40 Cumulative 10.3 hours Start 2024.04.21 @ 19:41:02 End 2024.04.21 @ 19:54:51 Sessions 1 Manual Loads 0 Difficulty Rogue Special Mode None Game No. 28 Rogue 28 Adventurer 0 Explorer 0 Win Type - Total 0 Types 0/0/0/0/0/0/0/0/0 Lore% 12 Gallery% 22 Achievement% 19 Wizard Run 0 Options --------- Layout 1 ASCII 0 Keyboard 0 Movement Mouse Keybinds 0 Fullscreen 1 Font 16/SmallcapsGlow Map View 25x20 Zoom Use 82% Tactical HUD 1 Map Filters NONE Filters NONE Steam SD RUN: 67fa0e7f-7953-4036-b383-8620551b3698